Cogmind - Beta 16 @@@ ROGUE MODE // 2025.11.09 @ 18:33:38 Player: WarMechanic Result: Destroyed by G-34 Mercenary with Small Laser Performance ------------- Evolutions (1) 500 Regions Visited (2) 400 Robots Destroyed (77) 385 Value Destroyed (1841) 1841 Prototype IDs (1) 20 Alien Tech Used (0) 0 Bonus (38) 38 TOTAL SCORE: 3184 Bonus ------- High Alert Combat Kills 38 Cogmind --------- Core Integrity 0/400 Matter 234/300 Energy 402/415 System Corruption 5% Temperature Cool (28) Movement Treading (280) Ox2 Location -9/Materials Parts ------- > --- POWER (2) -------- Ion Engine Improved Ion Engine > --- PROPULSION (2) --- Light Treads Improved Treads > --- UTILITY (2) ------ Huge Storage Unit Seismic Detector > --- WEAPON (3) ------- Beam Rifle Grenade Launcher > --- INVENTORY (25) --- Improved Treads Heat Sink Huge Storage Unit Compact Battery (200) Seismic Detector Light Armor Plating Light Armor Plating Hardened Light Armor Plating Hardened Light Armor Plating Particle Gun Heavy Assault Rifle Heavy Assault Rifle Rocket Launcher Rocket Launcher Datajack Maul Peak State ------------ > --- POWER ------------ Improved Ion Engine Light Nuclear Core > --- PROPULSION ------- Improved Treads Armored Wheel > --- UTILITY ---------- Medium Storage Unit Seismic Detector > --- WEAPON ----------- EM Shotgun Improved Assault Rifle Hammer > --- INVENTORY -------- Improved Treads Heat Sink Compact Battery Light Armor Plating Light Armor Plating Heavy EM Pulse Gun Heavy Assault Rifle Heavy Assault Rifle Grenade Launcher Datajack [Rating: 18] Favorites ----------- Power Ion Engine Engine Ion Engine Power Core Light Nuclear Core Propulsion Light Treads Treads Light Treads Wheel Compact Wheel Utility Seismic Detector Device Seismic Detector Storage Medium Storage Unit Protection Light Armor Plating Weapon Assault Rifle Energy Gun Medium Laser Ballistic Gun Assault Rifle Launcher Grenade Launcher Special Weapon Mining Laser Impact Weapon Hammer Special Melee Weapon Datajack Build | -11 -10 -9 ------- Run | Yrd Mat Mat Slots Evolved 2 | . . 2 Power 1 | . . 1 Propulsion . | . . . Utility . | . . . Weapon 1 | . . 1 Parts Attached 54 | 8 14 32 Power 15 | 1 4 10 Engine 14 | 1 4 9 Core 1 | . . 1 Reactor . | . . . Propulsion 12 | 2 4 6 Treads 6 | 1 1 4 Leg . | . . . Wheel 6 | 1 3 2 Hover . | . . . Flight . | . . . Utility 11 | 2 2 7 Device 4 | 1 1 2 Storage 5 | 1 1 3 Processor . | . . . Hackware . | . . . Protection 2 | . . 2 Artifact . | . . . Weapon 16 | 3 4 9 Energy Gun 5 | 1 . 4 Energy Cannon . | . . . Ballistic Gun 7 | 2 1 4 Ballistic Cannon . | . . . Launcher 1 | . 1 . Special Weapon 1 | . . 1 Impact Weapon 1 | . 1 . Slashing Weapon . | . . . Piercing Weapon . | . . . Special Melee Weapon 1 | . 1 . Unidentified Prototypes 1 | . . 1 Parts Lost 16 | . 1 15 Power 6 | . 1 5 Propulsion 2 | . . 2 Utility 1 | . . 1 Weapon 7 | . . 7 Highest Loss Streak 5 | . 1 5 To Critical Strikes . | . . . Average Backups 9 | 4 8 9 Power . | . 1 . Propulsion 1 | 1 2 1 Utility 3 | . 2 4 Weapon 3 | 1 2 3 Tool/Special . | . . . Unused Backups 18 | . 3 15 Power 2 | . 1 1 Propulsion 2 | . . 2 Utility 9 | . 1 8 Weapon 5 | . 1 4 Tool/Special . | . . . Average Slot Usage (%) 93 | . 99 88 Engine 14 | . 13 15 Treads 13 | . 14 12 Wheel 10 | . 14 8 Device 11 | . 14 9 Storage 12 | . 14 11 Energy Gun 11 | . 13 9 Ballistic Gun 10 | . 13 8 Launcher 1 | . . 3 Impact Weapon 3 | . . 6 Peak Build Rating 18 | 7 8 18 Average Rating 10 | 5 7 12 On Entrance 5 | . 7 8 Avg Prop Armor Cover (%) 8 | 5 9 8 Naked Turns . | . . . Heaviest Build 102 | 15 20 102 Greatest Support 43 | 20 20 43 Greatest Overweight (x) 7 | . 1 7 Average Overweight (x) 1 | . . 2 Largest Inventory Capacity 25 | 8 10 25 Average Capacity 12 | 6 9 15 Most Carried 16 | 6 10 16 Average Carried 9 | 4 8 9 Final Capacity 25 | 8 10 25 Final Carried 16 | 6 10 16 Class Distribution -------------------- 42% | Mutant 40% | Scavenger-Mutant 10% | Scientist-Mutant 5% | Scavenger-Gunner Dominant Class ---------------- Mutant | -10/Materials Scavenger-Mutant | -9/Materials Resources | -11 -10 -9 ----------- Run | Yrd Mat Mat Matter Collected 1465 | 324 414 727 Remotely . | . . . Salvage Created 2843 | 125 787 1931 Parts 183 | 10 44 129 Haulers Intercepted 1 | . 1 . Recyclers Shooed 4 | 1 3 . Parts Field Recycled . | . . . Retrieved Matter . | . . . Parts Self-Destructed . | . . . Prevented . | . . . Parts Restored . | . . . Kills | -11 -10 -9 ------- Run | Yrd Mat Mat Combat Hostiles Destroyed 46 | . 13 33 Guns 42 | . 12 30 AOE 3 | . . 3 Classes Destroyed 12 | 2 6 4 Worker 6 | . 3 3 Builder 2 | . . 2 Tunneler 7 | 3 1 3 Hauler 1 | . 1 . Recycler 5 | 1 2 2 Operator 3 | . 2 1 Watcher 7 | . 3 4 Swarmer 10 | . 6 4 Grunt 28 | . 7 21 Brawler 1 | . . 1 Duelist 1 | . . 1 Sentry 6 | . . 6 Best Kill Streak 6 | 3 5 6 Combat Bots Only 4 | . 3 4 Max Kills in Single Turn 2 | 1 2 2 Gunslinging . | . . . Exploded 1 | . . 1 Melee . | . . . Uniques/NPCs Destroyed . | . . . Combat | -11 -10 -9 -------- Run | Yrd Mat Mat Hostile Shots Fired 199 | . 61 138 Missed 59 | . 18 41 Hits 140 | . 43 97 Melee 8 | . . 8 Projectile 132 | . 43 89 Critical Strikes 2 | . . 2 Damage Taken 2831 | . 642 2189 Core 500 | . 100 400 Absorbed by Shields . | . . . Regen/Repaired (Parts) 144 | . . 144 Core Remaining (%) 80 | 100 60 . Volleys Fired 200 | 11 66 123 Largest 2 | 2 2 2 Hottest 101 | 40 80 101 Shots Fired 352 | 22 131 199 Gun 330 | 22 129 179 Cannon . | . . . Launcher 17 | . 2 15 Special 5 | . . 5 Kinetic 176 | 22 63 91 Thermal 79 | . 66 13 Explosive 17 | . 2 15 Electromagnetic 80 | . . 80 Robot Hit Streak 20 | 12 20 11 Robot Miss Streak 3 | 2 3 3 Penetration Max . | . . . Secondary Targets 4 | . 2 2 Max Gunslinging Chain 1 | . 1 1 Shots Hit Robots 224 | 15 85 124 Core Hits 118 | 7 37 74 Critical Kills 2 | . . 2 Critical Parts Destroyed 3 | . . 3 Critical Strikes 13 | . 6 7 Burn 6 | . 6 . Destroy 3 | . . 3 Corrupt 2 | . . 2 Smash 2 | . . 2 Melee Attacks 12 | . 4 8 Impact 12 | . 4 8 Slashing . | . . . Piercing . | . . . Sneak Attacks . | . . . Combat Hostiles . | . . . Follow-up Attacks . | . . . Damage Inflicted 4059 | 160 1365 2534 Guns 3015 | 160 1075 1780 Cannons . | . . . Explosions 748 | . 290 458 Melee 246 | . . 246 Ramming 26 | . . 26 Kinetic 1484 | 160 529 795 Thermal 908 | . 611 297 Explosive 339 | . 225 114 Electromagnetic 1056 | . . 1056 Impact 246 | . . 246 Slashing . | . . . Piercing . | . . . Highest Corruption 5 | . . 5 Average Corruption 4 | . . 4 Corruption Purged . | . . . Corruption Blocked . | . . . Effects 20 | . . 20 Message Errors 6 | . . 6 Matter Fused 4 | . . 4 Energy Discharges 4 | . . 4 Data Loss (minor) 2 | . . 2 Misfires 1 | . . 1 Alerts 2 | . . 2 Weapon Failures 1 | . . 1 Overload Shots . | . . . Overflow Damage 302 | . 27 275 Projectiles . | . . . Explosions 178 | . 27 151 Melee 124 | . . 124 Knockbacks 1 | . . 1 Impact 1 | . . 1 Kinetic . | . . . Secondary . | . . . Self-Inflicted Damage 468 | . 129 339 Shots 9 | . 2 7 Rammed 1 | . . 1 Targets Rammed 1 | . . 1 Kicked . | . . . Crushed . | . . . Highest Temperature 189 | . 189 141 Average Temperature 38 | . 37 38 Received Heat Transfer 699 | . 255 444 Siege Activations . | . . . Martial Activations . | . . . Shielding Activations . | . . . Robots Disrupted . | . . . Combat Hostiles . | . . . Robots Corrupted 1 | . . 1 Combat Hostiles . | . . . Parts Fried 3 | . . 3 Impact Corruptions 3 | . . 3 Robots Melted 1 | . 1 . Combat Hostiles 1 | . 1 . Parts Melted 5 | . 5 . Heat Transferred 2570 | . 2122 448 Parts Sabotaged . | . . . Parts Stolen . | . . . Parts Stripped . | . . . Power Chain Reactions 3 | . . 3 Alert | -11 -10 -9 ------- Run | Yrd Mat Mat Maximum Alert Level 2 | . 1 2 Low Security (%) 47 | 100 72 24 Level 1 38 | . 27 49 Level 2 13 | . . 25 Level 3 . | . . . Level 4 . | . . . Level 5 . | . . . High Security . | . . . Max Security . | . . . Peak Influence 527 | 15 300 527 Initial 60 | . . 60 Average 223 | 1 154 294 Influence Increases 1881 | 20 644 1217 Destroy 0b10 Robot/C 920 | . 260 660 Destroy 0b10 Robot/NC 170 | 20 60 90 Destroy Leader 236 | . 68 168 Successful Hack 45 | . 22 23 Disable Machine 210 | . 75 135 Destroy Structure 150 | . 39 111 Lose Combat Pursuer 150 | . 120 30 Influence Decreases 1370 | 20 500 850 Entered New Map 84 | . . 84 Time Decay 1126 | 20 490 616 Lost Part 160 | . 10 150 Squads Dispatched 13 | . 3 10 Investigation 6 | . 1 5 Extermination . | . . . Reinforcement 6 | . 2 4 Assault 1 | . . 1 Garrison . | . . . Intercept . | . . . Searches Triggered . | . . . Construction Impeded . | . . . Haulers Reinforced . | . . . Active Scanning Responses . | . . . Cargo Convoy Interrupts . | . . . Stealth | -11 -10 -9 --------- Run | Yrd Mat Mat Distress Signals 7 | . 1 6 Communications Jammed . | . . . Distress Signals . | . . . Times Spotted 77 | . 27 50 Peak Tracking Total 5 | . 4 5 Tactical Retreats 8 | . 6 2 Traps | -11 -10 -9 ------- Run | Yrd Mat Mat Traps Triggered 3 | . 2 1 Indirectly . | . . . Trap Hack Attempts . | . . . Triggered . | . . . Disarmed . | . . . Reprogrammed . | . . . Reused . | . . . Traps Extracted . | . . . Installed . | . . . Triggered . | . . . Machines | -11 -10 -9 ---------- Run | Yrd Mat Mat Machines Disabled 14 | . 5 9 Max in Single Turn 5 | . 5 2 Machines Repaired . | . . . Machines Dismantled . | . . . Machines Sabotaged . | . . . Overloaded Fab Kills . | . . . Hacking | -11 -10 -9 --------- Run | Yrd Mat Mat Machines Accessed 13 | . 6 7 Terminals 10 | . 6 4 Fabricators . | . . . Repair Stations 2 | . . 2 Recycling Units . | . . . Scanalyzers 1 | . . 1 Garrison Access . | . . . Total Hacks 48 | . 13 35 Successful 24 | . 3 21 Failed 24 | . 10 14 Catastrophic 10 | . 4 6 Database Lockouts . | . . . Manual 26 | . 13 13 Terminals 26 | . 13 13 Fabricators . | . . . Repair Stations 7 | . . 7 Recycling Units . | . . . Scanalyzers 15 | . . 15 Garrison Access . | . . . Terminal Hacks 7 | . 3 4 Part Schematic 1 | . . 1 Terminal Index 2 | . 1 1 Scanalyzer Index 2 | . 1 1 Patrol Status 2 | . 1 1 Fabricator Hacks . | . . . Repair Station Hacks 4 | . . 4 Scan Component 2 | . . 2 Repair 2 | . . 2 Recycling Unit Hacks . | . . . Scanalyzer 13 | . . 13 Insert Component 3 | . . 3 Analyze 4 | . . 4 Retrieve Study 6 | . . 6 Garrison Access Hacks . | . . . Unauthorized Hacks . | . . . Terminals . | . . . Fabricators . | . . . Repair Stations . | . . . Recycling Units . | . . . Scanalyzers . | . . . Garrison Access . | . . . Data Cores Recovered . | . . . Used . | . . . Hacking Detections 13 | . 6 7 Full Trace Events 4 | . . 4 Feedback Events . | . . . Feedback Blocked . | . . . Robot Schematics Acquired . | . . . Robots Built . | . . . Authchips . | . . . Time . | . . . Total Robot Build Rating . | . . . Part Schematics Acquired 4 | . . 4 Parts Built . | . . . Authchips . | . . . Time . | . . . Total Part Build Rating . | . . . Part Studies Acquired 6 | . . 6 Parts Repaired 2 | . . 2 Time 64 | . . 64 Parts Recycled . | . . . Recycled Matter . | . . . Retrieved Matter . | . . . Retrieved Components . | . . . Parts Scanalyzed 3 | . . 3 Part Schematics Acquired 3 | . . 3 Parts Damaged . | . . . Bothacking | -11 -10 -9 ------------ Run | Yrd Mat Mat Used RIF Installer . | . . . Robots Hacked . | . . . Non-combat . | . . . Combat . | . . . Robot Hacks Applied . | . . . Relay Couplers Released . | . . . Fabnet Peak Effective % . | . . . Robots Rewired . | . . . Allies Hacked . | . . . Hacks Repelled . | . . . Allies | -11 -10 -9 -------- Run | Yrd Mat Mat Total Allies . | . . . Largest Group . | . . . Highest-Rated Group . | . . . Highest-Rated Ally . | . . . Total Orders . | . . . Ally Attacks . | . . . Total Damage . | . . . Kills . | . . . Allies Corrupted . | . . . Allies Melted . | . . . Intel | -11 -10 -9 ------- Run | Yrd Mat Mat Active Infowar (turns) 3439 | 37 1632 1770 Seismic 3439 | 37 1632 1770 Robot Analysis Total . | . . . Derelict Logs Recovered . | . . . Drone Launches . | . . . Drone Recoveries . | . . . Exploration | -11 -10 -9 ------------- Run | Yrd Mat Mat Turns Passed 3830 | 148 1632 2050 Spaces Moved 1520 | 68 685 767 Core 5 | 5 . . Treads 637 | 58 258 321 Legs . | . . . Wheels 878 | 5 427 446 Hover . | . . . Flight . | . . . Fastest Speed 50 | 50 95 105 Average Speed 151 | 146 125 175 Slowest Speed 280 | 160 160 280 Overloaded Moves . | . . . Propulsion Burnouts . | . . . Robots Hopped . | . . . Potential Cave-ins 2 | . . 2 Cave-ins Triggered 2 | . . 2 Exploration Rate (%) 54 | 5 85 72 Regions Visited 2 Branch Regions . Pre-discovered Areas . | . . . Known Exits Taken . | . . . Unknown Exits Taken 2 | 1 1 . Scrap Searched . | . . . Spaces Dug 34 | . 11 23 Terrain Destroyed 151 | . 36 115 Melee 5 | . 3 2 Projectile . | . . . AOE 146 | . 33 113 Terrain Rammed . | . . . Walls Destroyed . | . . . Machines Disabled . | . . . Actions | -11 -10 -9 --------- Run | Yrd Mat Mat Total 2681 | 93 1332 1256 Wait 793 | . 533 260 Move 1518 | 67 684 767 Hop . | . . . Pick Up 51 | 7 14 30 Fast Attach 15 | 6 2 7 Attach 14 | 1 1 12 Detach 2 | . . 2 Swap 38 | 1 14 23 Drop 37 | . 14 23 Fire 200 | 11 66 123 Melee 12 | . 4 8 Ram 1 | . . 1 Kick . | . . . Crush . | . . . Escape Stasis . | . . . Rewire . | . . . Trap . | . . . Miscellaneous . | . . . Route ------- -11/Scrapyard -10/Materials (discovered 5 exits: *Mat x3 / [*Min] / [*Sub]) -9/Materials (discovered 3 exits: [*Mat x2] / [*Sto]) History --------- Turn | Location | Event 16 | -11/Scrapyard | Discovered new exit (range 15) 149 | -11/Scrapyard | Entered Materials 302 | -10/Materials | Build established: Mutant 309 | -10/Materials | Discovered new exit (range 3) 315 | -10/Materials | Discovered new exit (range 9) 756 | -10/Materials | Discovered new exit (range 10) 960 | -10/Materials | Discovered new exit (range 4) 1072 | -10/Materials | Discovered new exit (range 15) 1360 | -10/Materials | Build established: Scavenger-Mutant 1781 | -10/Materials | Entered another Materials area 1781 | -9/Materials | Evolved 2 slots: Power x1, Weapon x1 2149 | -9/Materials | Discovered new exit (range 13) 2173 | -9/Materials | Discovered new exit (range 9) 2486 | -9/Materials | Repaired Imp. Ion Engine 2924 | -9/Materials | Build established: Scientist-Mutant 3024 | -9/Materials | Crushed by falling debris 3024 | -9/Materials | Core integrity fell below 50% 3041 | -9/Materials | Crushed by falling debris 3041 | -9/Materials | Core integrity fell below 20% 3081 | -9/Materials | Lost 5 parts (1p1u3w) 3175 | -9/Materials | Lost 4 parts (2p2w) 3237 | -9/Materials | Repaired Imp. Treads+ 3454 | -9/Materials | Build established: Mutant 3607 | -9/Materials | Discovered new exit (range 9) 3781 | -9/Materials | First assault squad dispatched 3831 | -9/Materials | Destroyed by G-34 Mercenary with Small Laser Last Messages --------------- 03802_ U-05 Engineer lays Concrete. 03805_ U-05 Engineer builds a Wall. 03805_ U-05 Engineer lays Concrete. 03806_ U-05 Engineer builds a Wall. 03807_ U-05 Engineer lays Concrete. 03810_ Acquired 12 matter. 03810_ U-05 Engineer lays Concrete. 03811_ U-05 Engineer builds a Wall. 03812_ U-05 Engineer lays Concrete. 03817_ U-05 Engineer builds a Wall. 03819_ U-05 Engineer lays Concrete. 03820_ U-05 Engineer builds a Wall. 03821_ U-05 Engineer lays Concrete. 03823_ Hvy. EM Pulse Gun destroyed. 03824_ System corrupted: Component data lost. 03824_ Acquired Rocket Launcher. 03824_ U-05 Engineer builds a Door. 03826_ U-05 Engineer lays Concrete. 03828_ Acquired Rocket Launcher. 03830_ U-05 Engineer lays Concrete. Map ----- +----------------------------------------------------+ | | | | | | | | | | | | | | | | | | | | | | | | | | | | | | | | | ????????????????????????#########??????????????? | | ????????????????????????# ##????#########? | | ????????????????????????#"" #???# ! #? | | ????????????????????????#"T ##???# #? | | ????????????????????????#"" !#????# #? | | ????????????????????????# ###### #? | | ????????????????????????# ####+## # #? | | ?????????????????##+###### u ! ! " # #? | | ?????????????????# !!u + #? | | ?????????????????# !@u u/ #### # #? | | ?????????????????# ! ##?## ### #? | | ?????????????????# ##??# #?########### | | ?????????????????# o #???# #??## | | ??????????????? #???# #??# | | ??????????????# #???# #??# | | ??????????????# "T" #???# #??## | | ??????????????############ ##???#+#???# "" "" | | ?????????????????????????# #??????????# ""S"" | | ?????????????????????????+ +??????????# """" | | ?????????????????????????# g#??????????# | | ?????????????????????????# #??????????######### | | ?????????????????????????# #???????????## # | | ?????????????????????????# #???????????# ## | | ?????????????????????????? #???????????####### | | ????????????????????????????????????????# | | ????????????????????????????????????????# | | ???????????????????????????????????????## | | ???????????????????????????????????????# """ | | ???????????????????????????????????????## """""= | | ????????????????????????????????????????# """"" | | ????????????????????????????????????????# """"" | | ????????????????????????????????????????# """! | | ????????????????????????????????????????# | | ????????????????????????????????????????# | +----------------------------------------------------+ Best States ------------- Heat Dissipation 28 Energy Generation 23 Energy Capacity 415 Matter Stores 300 Matter Capacity 300 Sight Range 16 Terrain Scan Density 10 Armor Coverage 150 Evasion (%) 44 Recoil Reduction 2 Item Schematics ----------------- EM Shotgun | -9/Materials | Scanalyzed Imp. Treads | -9/Materials | Scanalyzed Hvy. Assault Rifle | -9/Materials | Scanalyzed EMP Blaster | -9/Materials | Hacked Robot Schematics ------------------ None Fabricated ------------ Nothing Repaired ---------- Imp. Ion Engine | 44% | -9/Materials Imp. Treads | 32% | -9/Materials Studied --------- EM Shotgun | -9/Materials | Hacked Imp. Treads | -9/Materials | Hacked Arm. Wheel | -9/Materials | Hacked Hammer | -9/Materials | Hacked Grenade Launcher | -9/Materials | Hacked Imp. Ion Engine | -9/Materials | Hacked Alien Tech Used ----------------- None Achievements -------------- Item+ Part-time Excavator Challenges ------------ None Game ------ Seed HypertargetingSwarmPod Manual? 0 Play Time 00:57:01 Cumulative 21.0 hours Start 2025.11.09 @ 17:33:01 End 2025.11.09 @ 18:33:38 Sessions 1 Manual Loads 0 Difficulty Rogue Special Mode None Game No. 28 Rogue 28 Adventurer 0 Explorer 0 Win Type - Total 0 Types 0/0/0/0/0/0/0/0/0/0 Lore% 5 Gallery% 11 Achievement% 10 Wizard Run 0 Options --------- Layout 1 ASCII 0 Keyboard 1 Movement Arrows Keybinds 1 Fullscreen 2 Font 24/Smallcaps Map View 50x35 Zoom Use 0% Tactical HUD 1 Map Filters NONE Filters NONE Steam 1 RUN: 420460a3-6b83-4cbd-a354-6695d6956476